Body Name,ONS SNAC ID,Pay Date,Transaction No,Amount �,Supplier Name,Company Registration No,Department,Account Name,CIPFA Service Reporting
Swale Borough Council,29UM,04/12/2019,1172591,700.00,1242 (FAV) ROYAL AIR FORCE AIR CADETS,                         ,ECONOMY & COMMUNITIES,Grants & Subscriptions,Central Services to the Public
Swale Borough Council,29UM,04/12/2019,1172740,450.00,ALL SAINTS CHURCH,                         ,ECONOMY & COMMUNITIES,Grants & Subscriptions,Central Services to the Public
Swale Borough Council,29UM,04/12/2019,1172642,12838.50,APCOA PARKING (UK) LTD,2572947                  ,CAR PARKS,Private Contractors,Highway and Transport Services
Swale Borough Council,29UM,04/12/2019,1172642,19257.76,APCOA PARKING (UK) LTD,2572947                  ,CAR PARKS,Private Contractors,Highway and Transport Services
Swale Borough Council,29UM,04/12/2019,1172507,3938.89,BLENWOOD LTD,4383277                  ,LEISURE & OPEN SPACES,Maintenance - Grounds,Cultural and Related Services
Swale Borough Council,29UM,04/12/2019,1172514,419.18,BLENWOOD LTD,4383277                  ,LEISURE & OPEN SPACES,Maintenance - Grounds,Cultural and Related Services
Swale Borough Council,29UM,04/12/2019,1172625,3303.11,BLENWOOD LTD,4383277                  ,LEISURE & OPEN SPACES,Grounds Maint Suspense,Cultural and Related Services
Swale Borough Council,29UM,04/12/2019,1172653,2617.37,BLENWOOD LTD,4383277                  ,LEISURE & OPEN SPACES,Maintenance - Grounds Contract,Cultural and Related Services
Swale Borough Council,29UM,04/12/2019,1172737,700.00,BORDEN SHORT MATS BOWL CLUB,                         ,ECONOMY & COMMUNITIES,Grants & Subscriptions,Central Services to the Public
Swale Borough Council,29UM,04/12/2019,1172778,6079.59,BROADWAY ESTATES,                         ,REVENUE SERVICES,KCC Relocation Scheme - Expenditure,Housing
Swale Borough Council,29UM,04/12/2019,1172560,743.50,CITIZENS ADVICE BUREAU IN SWALE,5052691                  ,ECONOMY & COMMUNITIES,Grants & Subscriptions,Central Services to the Public
Swale Borough Council,29UM,04/12/2019,1172557,317.50,CLEAR CHANNEL UK LTD,                         ,COMMUNITY SAFETY,Advertising & Promo - Ext Fund by Grant & Other Income,Planning and Development Services
Swale Borough Council,29UM,04/12/2019,1172562,1000.00,DIVERSITY HOUSE LIMITED,6188059                  ,ECONOMY & COMMUNITIES,Grants & Subscriptions,Central Services to the Public
Swale Borough Council,29UM,04/12/2019,1172549,2400.00,DOLPHIN STAIRLIFTS (KENT),04181846                 ,HOUSING SERVICES,Staying Put small repairs (contractors),Housing
Swale Borough Council,29UM,04/12/2019,1172738,1000.00,EASTCHURCH PARISH COUNCIL,                         ,TOURISM & SPORTS DEVELOPMENT,Grants & Subscriptions,Cultural and Related Services
Swale Borough Council,29UM,04/12/2019,1172707,4362.50,ENVITECH EUROPE LTD,SC367372                 ,MKS ENVIRONMENTAL SERVICES,Private Contractors,Environmental and Regulatory Services
Swale Borough Council,29UM,04/12/2019,1172492,613.48,FIRE & SECURITY CONSULTANCY LTD,5946022                  ,COMMUNITY SAFETY,Non-Planned Building Maintenance,Cultural and Related Services
Swale Borough Council,29UM,04/12/2019,1172651,608.76,H S JACKSON & SON (FENCING) LTD,910291                   ,LEISURE & OPEN SPACES,Maintenance - Grounds,Cultural and Related Services
Swale Borough Council,29UM,04/12/2019,1172330,255.00,HENDEN PEST CONTROL,                         ,LEISURE & OPEN SPACES,Pest Control Services,Cultural and Related Services
Swale Borough Council,29UM,04/12/2019,1172471,472.40,KENT COUNTRY FOLK,                         ,ENVIRONMENTAL RESPONSE TEAM,Grants & Subscriptions,Planning and Development Services
Swale Borough Council,29UM,04/12/2019,1172517,1169.12,KENT COUNTY COUNCIL,                         ,SERVICE DELIVERY,Fees and Services,Highway and Transport Services
Swale Borough Council,29UM,04/12/2019,1172614,270.00,KENT COUNTY COUNCIL,                         ,DEMOCRATIC & ELECTORAL SERVICES,Hire Of Premises,Ledger/Suspense Codes
Swale Borough Council,29UM,04/12/2019,1172600,1589.88,KENT MARQUEES,6579266                  ,ECONOMY & COMMUNITIES,Communities Fund Expenditure,Ledger/Suspense Codes
Swale Borough Council,29UM,04/12/2019,1172453,57.50,KIRKMAN & JOURDAIN LTD,01766240                 ,LEISURE & OPEN SPACES,Non-Planned Building Maintenance,Environmental and Regulatory Services
Swale Borough Council,29UM,04/12/2019,1172453,27.00,KIRKMAN & JOURDAIN LTD,01766240                 ,COMMUNITY SAFETY,Non-Planned Building Maintenance,Cultural and Related Services
Swale Borough Council,29UM,04/12/2019,1172453,1086.07,KIRKMAN & JOURDAIN LTD,01766240                 ,COMMUNITY SAFETY,Non-Planned Building Maintenance,Cultural and Related Services
Swale Borough Council,29UM,04/12/2019,1172453,325.46,KIRKMAN & JOURDAIN LTD,01766240                 ,PROPERTY SERVICES,Non-Planned Building Maintenance,Cultural and Related Services
Swale Borough Council,29UM,04/12/2019,1172453,583.31,KIRKMAN & JOURDAIN LTD,01766240                 ,PROPERTY SERVICES,Non-Planned Building Maintenance,Trading Undertaking
Swale Borough Council,29UM,04/12/2019,1172453,54.00,KIRKMAN & JOURDAIN LTD,01766240                 ,PROPERTY SERVICES,Non-Planned Building Maintenance,Trading Undertaking
Swale Borough Council,29UM,04/12/2019,1172453,38.50,KIRKMAN & JOURDAIN LTD,01766240                 ,PROPERTY SERVICES,Non-Planned Building Maintenance,Trading Undertaking
Swale Borough Council,29UM,04/12/2019,1172453,27.00,KIRKMAN & JOURDAIN LTD,01766240                 ,ECONOMIC DEVELOPMENT,Fees and Services,Planning and Development Services
Swale Borough Council,29UM,04/12/2019,1172453,138.53,KIRKMAN & JOURDAIN LTD,01766240                 ,HOUSING SERVICES,General Maintenance,Housing
Swale Borough Council,29UM,04/12/2019,1172453,2596.00,KIRKMAN & JOURDAIN LTD,01766240                 ,PROPERTY SERVICES,Non-Planned Building Maintenance,Corporate & Democratic Core
Swale Borough Council,29UM,04/12/2019,1172453,984.43,KIRKMAN & JOURDAIN LTD,01766240                 ,PROPERTY SERVICES,Non-Planned Building Maintenance,Corporate & Democratic Core
Swale Borough Council,29UM,04/12/2019,1172453,241.92,KIRKMAN & JOURDAIN LTD,01766240                 ,PROPERTY SERVICES,Non-Planned Building Maintenance,Corporate & Democratic Core
Swale Borough Council,29UM,04/12/2019,1172453,28.00,KIRKMAN & JOURDAIN LTD,01766240                 ,PROPERTY SERVICES,Non-Planned Building Maintenance,Corporate & Democratic Core
Swale Borough Council,29UM,04/12/2019,1172453,27.00,KIRKMAN & JOURDAIN LTD,01766240                 ,PROPERTY SERVICES,Non-Planned Building Maintenance,Corporate & Democratic Core
Swale Borough Council,29UM,04/12/2019,1172453,88.05,KIRKMAN & JOURDAIN LTD,01766240                 ,LEISURE & OPEN SPACES,Non-Planned Building Maintenance,Cultural and Related Services
Swale Borough Council,29UM,04/12/2019,1172453,2317.88,KIRKMAN & JOURDAIN LTD,01766240                 ,LEISURE & OPEN SPACES,Maintenance - Grounds,Cultural and Related Services
Swale Borough Council,29UM,04/12/2019,1172453,167.55,KIRKMAN & JOURDAIN LTD,01766240                 ,CONTRACT & PROCUREMENT,Non-Planned Building Maintenance,Environmental and Regulatory Services
Swale Borough Council,29UM,04/12/2019,1172453,88.53,KIRKMAN & JOURDAIN LTD,01766240                 ,CONTRACT & PROCUREMENT,Non-Planned Building Maintenance,Environmental and Regulatory Services
Swale Borough Council,29UM,04/12/2019,1172453,231.23,KIRKMAN & JOURDAIN LTD,01766240                 ,CONTRACT & PROCUREMENT,Non-Planned Building Maintenance,Environmental and Regulatory Services
Swale Borough Council,29UM,04/12/2019,1172453,209.87,KIRKMAN & JOURDAIN LTD,01766240                 ,CONTRACT & PROCUREMENT,Non-Planned Building Maintenance,Environmental and Regulatory Services
Swale Borough Council,29UM,04/12/2019,1172453,82.50,KIRKMAN & JOURDAIN LTD,01766240                 ,CONTRACT & PROCUREMENT,Non-Planned Building Maintenance,Environmental and Regulatory Services
Swale Borough Council,29UM,04/12/2019,1172453,64.52,KIRKMAN & JOURDAIN LTD,01766240                 ,CONTRACT & PROCUREMENT,Non-Planned Building Maintenance,Environmental and Regulatory Services
Swale Borough Council,29UM,04/12/2019,1172453,84.00,KIRKMAN & JOURDAIN LTD,01766240                 ,CONTRACT & PROCUREMENT,Non-Planned Building Maintenance,Environmental and Regulatory Services
Swale Borough Council,29UM,04/12/2019,1172453,33.58,KIRKMAN & JOURDAIN LTD,01766240                 ,CONTRACT & PROCUREMENT,Non-Planned Building Maintenance,Environmental and Regulatory Services
Swale Borough Council,29UM,04/12/2019,1172453,55.00,KIRKMAN & JOURDAIN LTD,01766240                 ,CONTRACT & PROCUREMENT,Non-Planned Building Maintenance,Environmental and Regulatory Services
Swale Borough Council,29UM,04/12/2019,1172453,37.40,KIRKMAN & JOURDAIN LTD,01766240                 ,CONTRACT & PROCUREMENT,Non-Planned Building Maintenance,Environmental and Regulatory Services
Swale Borough Council,29UM,04/12/2019,1172453,121.30,KIRKMAN & JOURDAIN LTD,01766240                 ,CONTRACT & PROCUREMENT,Non-Planned Building Maintenance,Environmental and Regulatory Services
Swale Borough Council,29UM,04/12/2019,1172453,746.54,KIRKMAN & JOURDAIN LTD,01766240                 ,CONTRACT & PROCUREMENT,Non-Planned Building Maintenance,Environmental and Regulatory Services
Swale Borough Council,29UM,04/12/2019,1172453,507.67,KIRKMAN & JOURDAIN LTD,01766240                 ,LEISURE & OPEN SPACES,Non-Planned Building Maintenance,Cultural and Related Services
Swale Borough Council,29UM,04/12/2019,1172488,441.84,LAMBERHURST ENGINEERING LTD,3595260                  ,LEISURE & OPEN SPACES,Equipment Purchase,Cultural and Related Services
Swale Borough Council,29UM,04/12/2019,1172531,300.00,LEMAR LIMITED,04350292                 ,SERVICE DELIVERY,Private Contractors - CIS,Highway and Transport Services
Swale Borough Council,29UM,04/12/2019,1172531,420.00,LEMAR LIMITED,04350292                 ,SERVICE DELIVERY,Private Contractors - CIS,Highway and Transport Services
Swale Borough Council,29UM,04/12/2019,1172532,600.00,LEMAR LIMITED,04350292                 ,SERVICE DELIVERY,Private Contractors - CIS,Highway and Transport Services
Swale Borough Council,29UM,04/12/2019,1172532,360.00,LEMAR LIMITED,04350292                 ,SERVICE DELIVERY,Private Contractors - CIS,Highway and Transport Services
Swale Borough Council,29UM,04/12/2019,1172534,300.00,LEMAR LIMITED,04350292                 ,SERVICE DELIVERY,Private Contractors - CIS,Highway and Transport Services
Swale Borough Council,29UM,04/12/2019,1172534,376.00,LEMAR LIMITED,04350292                 ,SERVICE DELIVERY,Private Contractors - CIS,Highway and Transport Services
Swale Borough Council,29UM,04/12/2019,1172536,300.00,LEMAR LIMITED,04350292                 ,SERVICE DELIVERY,Private Contractors - CIS,Highway and Transport Services
Swale Borough Council,29UM,04/12/2019,1172536,35.00,LEMAR LIMITED,04350292                 ,SERVICE DELIVERY,Private Contractors - CIS,Highway and Transport Services
Swale Borough Council,29UM,04/12/2019,1172643,1000.00,LEYSDOWN PARISH COUNCIL,                         ,TOURISM & SPORTS DEVELOPMENT,Grants & Subscriptions,Cultural and Related Services
Swale Borough Council,29UM,04/12/2019,1172695,259.52,LYRECO UK LTD,                         ,MKS ENVIRONMENTAL SERVICES,Stationery,Internal Trading Cost Centres
Swale Borough Council,29UM,04/12/2019,1172658,665.00,METRIC GROUP LTD,2560839                  ,CAR PARKS,Fees - Licence,Highway and Transport Services
Swale Borough Council,29UM,04/12/2019,1172669,300.00,REDACTED PERSONAL INFORMATION,                         ,PLANNING SERVICES,Legal Fees,Internal Trading Cost Centres
Swale Borough Council,29UM,04/12/2019,1172669,60.00,REDACTED PERSONAL INFORMATION,                         ,PLANNING SERVICES,Legal Fees,Internal Trading Cost Centres
Swale Borough Council,29UM,04/12/2019,1172777,350.00,REDACTED PERSONAL INFORMATION,                         ,REVENUE SERVICES,Ex-Gratia Payments,Housing
Swale Borough Council,29UM,04/12/2019,1172665,18528.62,MONITOR CLEANING SERVICES LTD,02526388                 ,CONTRACT & PROCUREMENT,Private Contractors,Environmental and Regulatory Services
Swale Borough Council,29UM,04/12/2019,1172503,3051.05,ROYAL MAIL GROUP LTD,4138203                  ,PROPERTY SERVICES,Postage,Holding Codes
Swale Borough Council,29UM,04/12/2019,1172332,1371.87,SCOTTISH WATER BUSINESS STREAM LTD,SC294924                 ,CONTRACT & PROCUREMENT,Water - Metered,Environmental and Regulatory Services
Swale Borough Council,29UM,04/12/2019,1172474,889.39,SCOTTISH WATER BUSINESS STREAM LTD,SC294924                 ,CONTRACT & PROCUREMENT,Water - Metered,Environmental and Regulatory Services
Swale Borough Council,29UM,04/12/2019,1172496,373.97,SCOTTISH WATER BUSINESS STREAM LTD,SC294924                 ,CONTRACT & PROCUREMENT,Water - Metered,Environmental and Regulatory Services
Swale Borough Council,29UM,04/12/2019,1172497,271.80,SCOTTISH WATER BUSINESS STREAM LTD,SC294924                 ,COMMUNITY SAFETY,Water - Metered,Cultural and Related Services
Swale Borough Council,29UM,04/12/2019,1172552,1612.11,SCOTTISH WATER BUSINESS STREAM LTD,SC294924                 ,CONTRACT & PROCUREMENT,Water - Metered,Environmental and Regulatory Services
Swale Borough Council,29UM,04/12/2019,1171667,7220.48,SHARP BUSINESS SYSTEMS UK,2136901                  ,PROPERTY SERVICES,Equipment Maintenance,Internal Trading Cost Centres
Swale Borough Council,29UM,04/12/2019,1171668,2465.48,SHARP BUSINESS SYSTEMS UK,2136901                  ,PROPERTY SERVICES,Equipment Maintenance,Internal Trading Cost Centres
Swale Borough Council,29UM,04/12/2019,1172593,469.98,SHELDWICH VILLAGE EVENTS MGMT COMPANY,                         ,TOURISM & SPORTS DEVELOPMENT,Grants & Subscriptions,Cultural and Related Services
Swale Borough Council,29UM,04/12/2019,1172491,1180.40,SUTCLIFFE PLAY LTD,435546                   ,LEISURE & OPEN SPACES,Equipment Purchase,Cultural and Related Services
Swale Borough Council,29UM,04/12/2019,1172644,500.00,THE AUTISM APPRENTICE CIC,                         ,ECONOMY & COMMUNITIES,Grants & Subscriptions,Central Services to the Public
Swale Borough Council,29UM,04/12/2019,1172623,5088.38,THE NATIONAL LEAFLET COMPANY,02569979                 ,COMMUNICATIONS,Postage,Corporate & Democratic Core
Swale Borough Council,29UM,04/12/2019,1172542,870.00,TRAFALGAR TAVERN LTD,07999329                 ,HOUSING SERVICES,B & B - Homelessness Landlord Payments,Housing
Swale Borough Council,29UM,04/12/2019,1172561,400.00,UPCHURCH CRICKET CLUB,                         ,ECONOMY & COMMUNITIES,Grants & Subscriptions,Central Services to the Public
Swale Borough Council,29UM,04/12/2019,1172564,610.00,UPCHURCH PARISH COUNCIL,                         ,ENVIRONMENTAL RESPONSE TEAM,Grants & Subscriptions,Planning and Development Services
Swale Borough Council,29UM,04/12/2019,1172563,1800.00,WARDEN PARISH COUNCIL,                         ,ECONOMY & COMMUNITIES,Grants & Subscriptions,Central Services to the Public
Swale Borough Council,29UM,04/12/2019,1172596,600.00,WELLBEING PEOPLE LTD,07858207                 ,CHIEF EXECUTIVE,Fees and Services,Corporate & Democratic Core
Swale Borough Council,29UM,04/12/2019,1172172,457.68,WHISTL UK LIMITED,04417047                 ,REVENUE SERVICES,Postage,Central Services to the Public
Swale Borough Council,29UM,04/12/2019,1172172,228.83,WHISTL UK LIMITED,04417047                 ,REVENUE SERVICES,Postage,Housing
Swale Borough Council,29UM,04/12/2019,1172172,83.81,WHISTL UK LIMITED,04417047                 ,LEISURE & OPEN SPACES,Postage,Internal Trading Cost Centres
Swale Borough Council,29UM,04/12/2019,1172172,22.22,WHISTL UK LIMITED,04417047                 ,CAR PARKS,Postage,Internal Trading Cost Centres
Swale Borough Council,29UM,04/12/2019,1172172,45.87,WHISTL UK LIMITED,04417047                 ,PROPERTY SERVICES,Postage,Holding Codes
Swale Borough Council,29UM,04/12/2019,1172172,880.78,WHISTL UK LIMITED,04417047                 ,DEMOCRATIC & ELECTORAL SERVICES,Postage,Central Services to the Public
Swale Borough Council,29UM,04/12/2019,1172342,598.65,WHISTL UK LIMITED,04417047                 ,REVENUE SERVICES,Postage,Central Services to the Public
Swale Borough Council,29UM,04/12/2019,1172342,299.32,WHISTL UK LIMITED,04417047                 ,REVENUE SERVICES,Postage,Housing
Swale Borough Council,29UM,04/12/2019,1172342,0.31,WHISTL UK LIMITED,04417047                 ,LEISURE & OPEN SPACES,Postage,Internal Trading Cost Centres
Swale Borough Council,29UM,04/12/2019,1172342,12.17,WHISTL UK LIMITED,04417047                 ,CAR PARKS,Postage,Internal Trading Cost Centres
Swale Borough Council,29UM,04/12/2019,1172342,235.16,WHISTL UK LIMITED,04417047                 ,PROPERTY SERVICES,Postage,Holding Codes
Swale Borough Council,29UM,04/12/2019,1172342,666.79,WHISTL UK LIMITED,04417047                 ,DEMOCRATIC & ELECTORAL SERVICES,Postage,Central Services to the Public
Swale Borough Council,29UM,04/12/2019,1172581,380.00,WILLOW TREE HOME SOLUTIONS LTD,                         ,HOUSING SERVICES,Staying Put small repairs (contractors),Housing
Swale Borough Council,29UM,04/12/2019,1172582,250.00,WILLOW TREE HOME SOLUTIONS LTD,                         ,HOUSING SERVICES,Staying Put small repairs (contractors),Housing
Swale Borough Council,29UM,04/12/2019,1172589,358.00,WILLOW TREE HOME SOLUTIONS LTD,                         ,HOUSING SERVICES,Staying Put small repairs (contractors),Housing
Swale Borough Council,29UM,04/12/2019,1172652,260.00,WILLOW TREE HOME SOLUTIONS LTD,                         ,HOUSING SERVICES,Staying Put small repairs (contractors),Housing
Swale Borough Council,29UM,05/12/2019,1172845,397.25,BLENWOOD LTD,4383277                  ,LEISURE & OPEN SPACES,Maintenance - Grounds,Cultural and Related Services
Swale Borough Council,29UM,05/12/2019,4500710,-397.25,BLENWOOD LTD,4383277                  ,LEISURE & OPEN SPACES,Maintenance - Grounds,Cultural and Related Services
Swale Borough Council,29UM,11/12/2019,1172850,875.00,A.C MACKLIN FENCING,10311550                 ,LEISURE & OPEN SPACES,Maintenance - Grounds,Cultural and Related Services
Swale Borough Council,29UM,11/12/2019,1172850,566.33,A.C MACKLIN FENCING,10311550                 ,LEISURE & OPEN SPACES,Maintenance - Grounds,Cultural and Related Services
Swale Borough Council,29UM,11/12/2019,1172719,1485.00,ABAVUS LTD,6082412                  ,COMMISSIONING & CUSTOMER CONTACT,Computer Equipment & Materials,Internal Trading Cost Centres
Swale Borough Council,29UM,11/12/2019,1172933,497.47,ACORN MAINTENANCE SERVICES,3546898                  ,HOUSING SERVICES,Housing Renovation Grants,Not used in this Structure
Swale Borough Council,29UM,11/12/2019,1172940,6442.69,ACORN MAINTENANCE SERVICES,3546898                  ,HOUSING SERVICES,Housing Renovation Grants,Not used in this Structure
Swale Borough Council,29UM,11/12/2019,1172721,718.75,AMETHYST HORTICULTURE LTD,4464660                  ,LEISURE & OPEN SPACES,Maintenance - Grounds,Cultural and Related Services
Swale Borough Council,29UM,11/12/2019,1172618,413.62,B W MAY AND SON LTD,1016572                  ,PLANNING SERVICES,Private Contractors - CIS,Planning and Development Services
Swale Borough Council,29UM,11/12/2019,1172836,9482.19,BGC PARTNERS,                         ,FINANCIAL SERVICES,Broker Fees,Corporate & Democratic Core
Swale Borough Council,29UM,11/12/2019,1172744,42500.00,BLACK OFFICE (HOLDINGS) LIMITED,                         ,CAR PARKS,Rent,Highway and Transport Services
Swale Borough Council,29UM,11/12/2019,1172626,105326.14,BLENWOOD LTD,4383277                  ,LEISURE & OPEN SPACES,Grounds Maint Suspense,Cultural and Related Services
Swale Borough Council,29UM,11/12/2019,1172875,397.25,BLENWOOD LTD,4383277                  ,LEISURE & OPEN SPACES,Maintenance - Grounds,Cultural and Related Services
Swale Borough Council,29UM,11/12/2019,1172292,2000.00,BLOOM PROCUREMENT SERVICES LTD,08045123                 ,PLANNING SERVICES,Fees and Services,Planning and Development Services
Swale Borough Council,29UM,11/12/2019,1172432,13524.00,BLOOM PROCUREMENT SERVICES LTD,08045123                 ,PROPERTY SERVICES,Consultancy/Specialist Advice,Cultural and Related Services
Swale Borough Council,29UM,11/12/2019,1172919,1000.00,BORDEN FETE COMMITTEE,                         ,ECONOMY & COMMUNITIES,Grants & Subscriptions,Central Services to the Public
Swale Borough Council,29UM,11/12/2019,1172886,1000.00,BORDEN PARISH COUNCIL,                         ,TOURISM & SPORTS DEVELOPMENT,Grants & Subscriptions,Cultural and Related Services
Swale Borough Council,29UM,11/12/2019,1172728,2576.00,BROGDALE CIC,                         ,DIRECTOR OF REGENERATION,Capitalised Fees And Charges,Not used in this Structure
Swale Borough Council,29UM,11/12/2019,1172650,33357.50,CITIZENS ADVICE BUREAU IN SWALE,5052691                  ,TOURISM & SPORTS DEVELOPMENT,Voluntary Organisations Grants,Central Services to the Public
Swale Borough Council,29UM,11/12/2019,1172917,850.00,CLEAR CHANNEL UK LTD,                         ,COMMUNITY SAFETY,Advertising & Promo - Ext Fund by Grant & Other Income,Planning and Development Services
Swale Borough Council,29UM,11/12/2019,1172871,6292.67,COBALT TELEPHONE TECHNOLOGIES LIMITED,03151938                 ,CAR PARKS,Fees - Licence,Highway and Transport Services
Swale Borough Council,29UM,11/12/2019,1172765,1000.00,COHESION PLUS KENT,6924474                  ,COMMUNITY SAFETY,Fees and Services,Planning and Development Services
Swale Borough Council,29UM,11/12/2019,1172937,619.46,COLDWELL CONSTRUCTION LTD,4814340                  ,HOUSING SERVICES,Housing Renovation Grants,Not used in this Structure
Swale Borough Council,29UM,11/12/2019,1172938,13516.45,COLDWELL CONSTRUCTION LTD,4814340                  ,HOUSING SERVICES,Housing Renovation Grants,Not used in this Structure
Swale Borough Council,29UM,11/12/2019,1172939,11953.24,DAYTRAD LIMITED,7654373                  ,HOUSING SERVICES,Housing Renovation Grants,Not used in this Structure
Swale Borough Council,29UM,11/12/2019,1172739,727.75,EASTCHURCH PARISH COUNCIL,                         ,ENVIRONMENTAL RESPONSE TEAM,Grants & Subscriptions,Planning and Development Services
Swale Borough Council,29UM,11/12/2019,1170714,12000.00,GEN2 PROPERTY LIMITED,09834851                 ,LEISURE & OPEN SPACES,Maintenance - Grounds,Environmental and Regulatory Services
Swale Borough Council,29UM,11/12/2019,1172673,1718.75,GRAHAM BOULDEN & COMPANY,                         ,CAR PARKS,Rent,Highway and Transport Services
Swale Borough Council,29UM,11/12/2019,1172931,253.00,HIGHER ELEVATION LTD,4078005                  ,HOUSING SERVICES,Housing Renovation Grants,Not used in this Structure
Swale Borough Council,29UM,11/12/2019,1172932,9640.00,HIGHER ELEVATION LTD,4078005                  ,HOUSING SERVICES,Housing Renovation Grants,Not used in this Structure
Swale Borough Council,29UM,11/12/2019,1172936,16395.00,HIGHER ELEVATION LTD,4078005                  ,HOUSING SERVICES,Housing Renovation Grants,Not used in this Structure
Swale Borough Council,29UM,11/12/2019,1172930,5400.00,HUBBARD & HOUGHTON CONSTRUCTION LTD,                         ,HOUSING SERVICES,Housing Renovation Grants,Not used in this Structure
Swale Borough Council,29UM,11/12/2019,1172941,1667.68,HUBBARD & HOUGHTON CONSTRUCTION LTD,                         ,HOUSING SERVICES,Housing Renovation Grants,Not used in this Structure
Swale Borough Council,29UM,11/12/2019,1172660,5000.00,IAN SAYER & Co,                         ,FINANCIAL SERVICES,STC - Capitalised Fees And Charges,Not used in this Structure
Swale Borough Council,29UM,11/12/2019,1172726,2262.44,ILK SECURITY LTD,7780757                  ,PROPERTY SERVICES,Fees and Services,Corporate & Democratic Core
Swale Borough Council,29UM,11/12/2019,1172726,-254.40,ILK SECURITY LTD,7780757                  ,PROPERTY SERVICES,Fees and Services,Corporate & Democratic Core
Swale Borough Council,29UM,11/12/2019,1172784,335.00,IMPROVEMENT & DEV AGENCY FOR LOCAL GOV,3675577                  ,DEMOCRATIC & ELECTORAL SERVICES,Conference,Corporate & Democratic Core
Swale Borough Council,29UM,11/12/2019,1172785,335.00,IMPROVEMENT & DEV AGENCY FOR LOCAL GOV,3675577                  ,DEMOCRATIC & ELECTORAL SERVICES,Conference,Corporate & Democratic Core
Swale Borough Council,29UM,11/12/2019,1172783,884.93,INSIGHT DIRECT (UK) LTD,2579852                  ,MKS ICT,Computer Equipment & Materials,Internal Trading Cost Centres
Swale Borough Council,29UM,11/12/2019,1172862,100.00,J N CLEARANCE,                         ,LEISURE & OPEN SPACES,Maintenance - Grounds,Environmental and Regulatory Services
Swale Borough Council,29UM,11/12/2019,1172862,200.00,J N CLEARANCE,                         ,LEISURE & OPEN SPACES,Maintenance - Grounds,Environmental and Regulatory Services
Swale Borough Council,29UM,11/12/2019,1172862,75.00,J N CLEARANCE,                         ,LEISURE & OPEN SPACES,Maintenance - Grounds,Cultural and Related Services
Swale Borough Council,29UM,11/12/2019,1172814,13000.00,KENT COUNTY COUNCIL,                         ,MKS ICT,Computer Equipment & Materials,Internal Trading Cost Centres
Swale Borough Council,29UM,11/12/2019,1172876,1169.12,KENT COUNTY COUNCIL,                         ,SERVICE DELIVERY,Fees and Services,Highway and Transport Services
Swale Borough Council,29UM,11/12/2019,1172316,8630.85,KOMPAN LTD,1704623                  ,LEISURE & OPEN SPACES,Capital Constuction - CIS Works,Not used in this Structure
Swale Borough Council,29UM,11/12/2019,1172878,475.00,KOMPAN LTD,1704623                  ,LEISURE & OPEN SPACES,Equipment Purchase,Cultural and Related Services
Swale Borough Council,29UM,11/12/2019,1172692,255.00,LYRECO UK LTD,                         ,PROPERTY SERVICES,Paper,Internal Trading Cost Centres
Swale Borough Council,29UM,11/12/2019,1172697,290.00,LYRECO UK LTD,                         ,PROPERTY SERVICES,Paper,Internal Trading Cost Centres
Swale Borough Council,29UM,11/12/2019,1172699,393.43,LYRECO UK LTD,                         ,MULTISTOREY CAR PARK,Equipment Purchase,Highway and Transport Services
Swale Borough Council,29UM,11/12/2019,1172655,12584.70,MATRIX SCM LTD,2227962                  ,HUMAN RESOURCES,Agency/Contract Staff,Internal Trading Cost Centres
Swale Borough Council,29UM,11/12/2019,1172828,7523.96,MATRIX SCM LTD,2227962                  ,HUMAN RESOURCES,Agency/Contract Staff,Internal Trading Cost Centres
Swale Borough Council,29UM,11/12/2019,1172709,5919.00,MAYLOW CONSTRUCTION LTD,                         ,LEISURE & OPEN SPACES,Equipment Maintenance,Cultural and Related Services
Swale Borough Council,29UM,11/12/2019,1172892,1665.00,MAYLOW CONSTRUCTION LTD,                         ,LEISURE & OPEN SPACES,Maintenance - Grounds,Cultural and Related Services
Swale Borough Council,29UM,11/12/2019,1172592,800.00,MEDWAY SWALE ESTUARY PARTNERSHIP,                         ,ENVIRONMENTAL RESPONSE TEAM,Grants & Subscriptions,Planning and Development Services
Swale Borough Council,29UM,11/12/2019,1172911,400.50,MORGANA SYSTEMS LTD,1335506                  ,PROPERTY SERVICES,Equipment Maintenance,Internal Trading Cost Centres
Swale Borough Council,29UM,11/12/2019,1172809,4866.60,MPS MARKETING SERVICES LIMITED,6360656                  ,DEMOCRATIC & ELECTORAL SERVICES,Fees and Services,Ledger/Suspense Codes
Swale Borough Council,29UM,11/12/2019,1172810,-800.00,MPS MARKETING SERVICES LIMITED,6360656                  ,DEMOCRATIC & ELECTORAL SERVICES,Fees and Services,Ledger/Suspense Codes
Swale Borough Council,29UM,11/12/2019,1172749,507.26,NPOWER,3432100                  ,LEISURE & OPEN SPACES,Electricity,Cultural and Related Services
Swale Borough Council,29UM,11/12/2019,1172844,295.66,NPOWER,                         ,LEISURE & OPEN SPACES,Electricity,Cultural and Related Services
Swale Borough Council,29UM,11/12/2019,1172872,317.35,NPOWER,                         ,CAR PARKS,Electricity,Highway and Transport Services
Swale Borough Council,29UM,11/12/2019,1172817,5806.00,OBSIDIAN SECURITY LTD,                         ,PROPERTY SERVICES,Non-Planned Building Maintenance,Corporate & Democratic Core
Swale Borough Council,29UM,11/12/2019,1172782,2587.50,P BINNIE CONSULTANCY LTD,07794784                 ,ECONOMIC DEVELOPMENT,Consultancy/Specialist Advice,Planning and Development Services
Swale Borough Council,29UM,11/12/2019,1172710,290.33,PORTAKABIN LIMITED,685303                   ,LEISURE & OPEN SPACES,Maintenance - Grounds,Environmental and Regulatory Services
Swale Borough Council,29UM,11/12/2019,1172803,2416.72,PORTAKABIN LIMITED,685303                   ,LEISURE & OPEN SPACES,Hire Of Premises,Cultural and Related Services
Swale Borough Council,29UM,11/12/2019,1172826,6998.63,ROYAL MAIL GROUP LTD,4138203                  ,DEMOCRATIC & ELECTORAL SERVICES,Postage,Ledger/Suspense Codes
Swale Borough Council,29UM,11/12/2019,1172826,307.50,ROYAL MAIL GROUP LTD,4138203                  ,DEMOCRATIC & ELECTORAL SERVICES,Postage,Ledger/Suspense Codes
Swale Borough Council,29UM,11/12/2019,1172826,99.00,ROYAL MAIL GROUP LTD,4138203                  ,DEMOCRATIC & ELECTORAL SERVICES,Postage,Ledger/Suspense Codes
Swale Borough Council,29UM,11/12/2019,1172678,375.00,RURAL PLANNING LTD,4426249                  ,PLANNING SERVICES,Fees and Services,Planning and Development Services
Swale Borough Council,29UM,11/12/2019,1172821,400.00,S'BOURNE CHRISTMAS LIGHTS ASSOC,                         ,ECONOMY & COMMUNITIES,Grants & Subscriptions,Central Services to the Public
Swale Borough Council,29UM,11/12/2019,1172853,8502.80,SERCO LEISURE OPERATING LIMITED,04687478                 ,LEISURE & OPEN SPACES,Construction,Not used in this Structure
Swale Borough Council,29UM,11/12/2019,1172727,1487.50,SHEPPEY MATTERS,3946296                  ,ECONOMIC DEVELOPMENT,Fees and Services,Planning and Development Services
Swale Borough Council,29UM,11/12/2019,1172679,660.00,SMITH OF DERBY LTD,01395408                 ,PROPERTY SERVICES,Non-Planned Building Maintenance,Cultural and Related Services
Swale Borough Council,29UM,11/12/2019,1172851,19.31,SODEXO MOTIVATION SOLUTIONS UK LTD,2680629                  ,HUMAN RESOURCES,Fees and Services,Corporate & Democratic Core
Swale Borough Council,29UM,11/12/2019,1172751,15571.02,SPIRIT OF SITTINGBOURNE LLP,OC377168                 ,FINANCIAL SERVICES,STC - Capitalised Fees And Charges,Not used in this Structure
Swale Borough Council,29UM,11/12/2019,1172622,1672.00,THE OYSTER PARTNERSHIP,05020374                 ,PLANNING SERVICES,Agency/Contract Staff,Planning and Development Services
Swale Borough Council,29UM,11/12/2019,1172815,1782.00,THE OYSTER PARTNERSHIP,05020374                 ,PLANNING SERVICES,Agency/Contract Staff,Planning and Development Services
Swale Borough Council,29UM,11/12/2019,1172820,2104.00,THOMSON REUTERS,1679046                  ,PLANNING SERVICES,"Books, Journals & e - resources",Planning and Development Services
Swale Borough Council,29UM,11/12/2019,1172856,275.00,THREE TOWNS OFFICE EQUIPMENT LTD,                         ,REVENUE SERVICES,Furniture,Central Services to the Public
Swale Borough Council,29UM,11/12/2019,1172847,1075.00,TRAVMEDIA (UK) LTD,04606529                 ,TOURISM & SPORTS DEVELOPMENT,Fees and Services,Cultural and Related Services
Swale Borough Council,29UM,11/12/2019,1172833,595.43,VANITORIALS LIMITED,3952938                  ,PROPERTY SERVICES,Cleaning Materials,Internal Trading Cost Centres
Swale Borough Council,29UM,11/12/2019,1172645,1554.00,VIVID RESOURCING LIMITED,06459262                 ,PLANNING SERVICES,Agency/Contract Staff,Internal Trading Cost Centres
Swale Borough Council,29UM,11/12/2019,1172823,1554.00,VIVID RESOURCING LIMITED,06459262                 ,PLANNING SERVICES,Agency/Contract Staff,Internal Trading Cost Centres
Swale Borough Council,29UM,11/12/2019,1172551,604.98,WHISTL UK LIMITED,04417047                 ,REVENUE SERVICES,Postage,Central Services to the Public
Swale Borough Council,29UM,11/12/2019,1172551,302.40,WHISTL UK LIMITED,04417047                 ,REVENUE SERVICES,Postage,Housing
Swale Borough Council,29UM,11/12/2019,1172551,2.51,WHISTL UK LIMITED,04417047                 ,LEISURE & OPEN SPACES,Postage,Internal Trading Cost Centres
Swale Borough Council,29UM,11/12/2019,1172551,12.55,WHISTL UK LIMITED,04417047                 ,CAR PARKS,Postage,Internal Trading Cost Centres
Swale Borough Council,29UM,11/12/2019,1172551,36.21,WHISTL UK LIMITED,04417047                 ,PROPERTY SERVICES,Postage,Holding Codes
Swale Borough Council,29UM,11/12/2019,1172551,263.93,WHISTL UK LIMITED,04417047                 ,DEMOCRATIC & ELECTORAL SERVICES,Postage,Central Services to the Public
Swale Borough Council,29UM,11/12/2019,1172715,613.92,WHISTL UK LIMITED,04417047                 ,REVENUE SERVICES,Postage,Central Services to the Public
Swale Borough Council,29UM,11/12/2019,1172715,306.96,WHISTL UK LIMITED,04417047                 ,REVENUE SERVICES,Postage,Housing
Swale Borough Council,29UM,11/12/2019,1172715,2.20,WHISTL UK LIMITED,04417047                 ,LEISURE & OPEN SPACES,Postage,Internal Trading Cost Centres
Swale Borough Council,29UM,11/12/2019,1172715,10.12,WHISTL UK LIMITED,04417047                 ,CAR PARKS,Postage,Internal Trading Cost Centres
Swale Borough Council,29UM,11/12/2019,1172715,25.63,WHISTL UK LIMITED,04417047                 ,PROPERTY SERVICES,Postage,Holding Codes
Swale Borough Council,29UM,11/12/2019,1172715,688.72,WHISTL UK LIMITED,04417047                 ,DEMOCRATIC & ELECTORAL SERVICES,Postage,Central Services to the Public
Swale Borough Council,29UM,11/12/2019,1172832,348.29,WICKSTEED LEISURE LTD,00603152                 ,LEISURE & OPEN SPACES,Equipment Purchase,Cultural and Related Services
Swale Borough Council,29UM,11/12/2019,1172934,5977.94,WILLOW TREE HOME SOLUTIONS LTD,                         ,HOUSING SERVICES,Housing Renovation Grants,Not used in this Structure
Swale Borough Council,29UM,11/12/2019,1172711,776.26,WYNNE-WILLIAMS ASSOCIATES LTD,5148770                  ,LEISURE & OPEN SPACES,Capitalised Fees And Charges,Not used in this Structure
Swale Borough Council,29UM,11/12/2019,1172712,2700.00,WYNNE-WILLIAMS ASSOCIATES LTD,5148770                  ,LEISURE & OPEN SPACES,Capitalised Fees And Charges,Not used in this Structure
Swale Borough Council,29UM,11/12/2019,1172597,2917.50,WYVERN HERITAGE AND LANDSCAPE CONSULTANCY,                         ,PLANNING SERVICES,Fees and Services,Planning and Development Services
Swale Borough Council,29UM,18/12/2019,1172944,500.00,1ST TEYNHAM SCOUT GROUP,                         ,ECONOMY & COMMUNITIES,Grants & Subscriptions,Central Services to the Public
Swale Borough Council,29UM,18/12/2019,1172949,3057.00,ACORN MAINTENANCE SERVICES,3546898                  ,HOUSING SERVICES,Staying Put small repairs (contractors),Housing
Swale Borough Council,29UM,18/12/2019,1173045,568.95,ACORN MAINTENANCE SERVICES,3546898                  ,HOUSING SERVICES,Staying Put small repairs (contractors),Housing
Swale Borough Council,29UM,18/12/2019,1173046,325.88,ACORN MAINTENANCE SERVICES,3546898                  ,HOUSING SERVICES,Staying Put small repairs (contractors),Housing
Swale Borough Council,29UM,18/12/2019,1173047,922.00,ACORN MAINTENANCE SERVICES,3546898                  ,HOUSING SERVICES,Staying Put small repairs (contractors),Housing
Swale Borough Council,29UM,18/12/2019,1173048,531.95,ACORN MAINTENANCE SERVICES,3546898                  ,HOUSING SERVICES,Staying Put small repairs (contractors),Housing
Swale Borough Council,29UM,18/12/2019,1173099,17479.67,ACORN MAINTENANCE SERVICES,3546898                  ,HOUSING SERVICES,Housing Renovation Grants,Not used in this Structure
Swale Borough Council,29UM,18/12/2019,1173100,6430.19,ACORN MAINTENANCE SERVICES,3546898                  ,HOUSING SERVICES,Housing Renovation Grants,Not used in this Structure
Swale Borough Council,29UM,18/12/2019,1172907,418.31,ADELANTE SOFTWARE LTD,4450760                  ,REVENUE SERVICES,Commission Paid,Central Services to the Public
Swale Borough Council,29UM,18/12/2019,1172907,179.28,ADELANTE SOFTWARE LTD,4450760                  ,EXCHEQUER,Commission Paid,Internal Trading Cost Centres
Swale Borough Council,29UM,18/12/2019,1172908,2366.38,ALLPAY LTD,02933191                 ,REVENUE SERVICES,Bank Charges Pay Point,Central Services to the Public
Swale Borough Council,29UM,18/12/2019,1172908,24.37,ALLPAY LTD,02933191                 ,REVENUE SERVICES,Bank Charges Pay Point,Housing
Swale Borough Council,29UM,18/12/2019,1172908,51.04,ALLPAY LTD,02933191                 ,EXCHEQUER,Bank Charges Pay Point,Internal Trading Cost Centres
Swale Borough Council,29UM,18/12/2019,1172670,34.12,ALLSTAR BUSINESS SOLUTIONS LTD - (DT),1073098                  ,DEMOCRATIC & ELECTORAL SERVICES,Petrol/Derv & Oil,Corporate & Democratic Core
Swale Borough Council,29UM,18/12/2019,1172670,139.53,ALLSTAR BUSINESS SOLUTIONS LTD - (DT),1073098                  ,SERVICE DELIVERY,Petrol/Derv & Oil,Cultural and Related Services
Swale Borough Council,29UM,18/12/2019,1172670,288.83,ALLSTAR BUSINESS SOLUTIONS LTD - (DT),1073098                  ,ENVIRONMENTAL RESPONSE TEAM,Fuel For Contract Vehicles,Internal Trading Cost Centres
Swale Borough Council,29UM,18/12/2019,1172670,153.69,ALLSTAR BUSINESS SOLUTIONS LTD - (DT),1073098                  ,LEISURE & OPEN SPACES,Fuel For Contract Vehicles,Cultural and Related Services
Swale Borough Council,29UM,18/12/2019,1172670,58.40,ALLSTAR BUSINESS SOLUTIONS LTD - (DT),1073098                  ,ENVIRONMENTAL RESPONSE TEAM,Fuel For Contract Vehicles,Environmental and Regulatory Services
Swale Borough Council,29UM,18/12/2019,1172670,67.68,ALLSTAR BUSINESS SOLUTIONS LTD - (DT),1073098                  ,HOUSING SERVICES,Fuel For Contract Vehicles,Housing
Swale Borough Council,29UM,18/12/2019,1172981,2440.00,ASCENDIT LIFTS LTD,3493530                  ,HOUSING SERVICES,Staying Put small repairs (contractors),Housing
Swale Borough Council,29UM,18/12/2019,1173101,2860.00,ASCENDIT LIFTS LTD,3493530                  ,HOUSING SERVICES,Housing Renovation Grants,Not used in this Structure
Swale Borough Council,29UM,18/12/2019,1173009,1075.20,ATLAS CONTRACTORS LTD,                         ,MULTISTOREY CAR PARK,Fees and Services,Highway and Transport Services
Swale Borough Council,29UM,18/12/2019,1172947,550.00,BRITISH DESTINATIONS,                         ,TOURISM & SPORTS DEVELOPMENT,Grants & Subscriptions,Cultural and Related Services
Swale Borough Council,29UM,18/12/2019,1172980,5420.00,C J GRAY PLANT HIRE LTD,4772083                  ,LEISURE & OPEN SPACES,Maintenance - Grounds,Cultural and Related Services
Swale Borough Council,29UM,18/12/2019,1172980,1230.00,C J GRAY PLANT HIRE LTD,4772083                  ,LEISURE & OPEN SPACES,Maintenance - Grounds,Cultural and Related Services
Swale Borough Council,29UM,18/12/2019,1172946,224455.93,COOMBS (CANTERBURY) Ltd.,2040829                  ,LEISURE & OPEN SPACES,Capital Constuction - CIS Works,Not used in this Structure
Swale Borough Council,29UM,18/12/2019,1172946,44891.18,COOMBS (CANTERBURY) Ltd.,2040829                  ,LEISURE & OPEN SPACES,Capital Constuction - CIS Works,Not used in this Structure
Swale Borough Council,29UM,18/12/2019,1173104,8458.90,DAYTRAD LIMITED,7654373                  ,HOUSING SERVICES,Housing Renovation Grants,Not used in this Structure
Swale Borough Council,29UM,18/12/2019,1172998,332.50,DCF VETERINARY CONSULTANCY LTD,10457421                 ,ENVIRONMENTAL RESPONSE TEAM,Fees - Veterinary,Environmental and Regulatory Services
Swale Borough Council,29UM,18/12/2019,1172984,650.00,DIVERSITY HOUSE LIMITED,6188059                  ,ECONOMY & COMMUNITIES,Grants & Subscriptions,Central Services to the Public
Swale Borough Council,29UM,18/12/2019,1172993,800.00,EASTCHURCH VILLAGE HALL,                         ,ECONOMY & COMMUNITIES,Grants & Subscriptions,Central Services to the Public
Swale Borough Council,29UM,18/12/2019,1172632,137.17,EDF ENERGY CUSTOMERS PLC,                         ,HOUSING SERVICES,Electricity,Housing
Swale Borough Council,29UM,18/12/2019,1172632,268.53,EDF ENERGY CUSTOMERS PLC,                         ,HOUSING SERVICES,Gas,Housing
Swale Borough Council,29UM,18/12/2019,1172637,360.00,EXPRESS MOBILE CATERING LTD,                         ,HOUSING SERVICES,Storage Expenses,Housing
Swale Borough Council,29UM,18/12/2019,1172867,4650.00,FIRST STOP HOUSING SOLUTION LTD,                         ,HOUSING SERVICES,NL (Nightly Lets) - Homelessness Landlord Payments,Housing
Swale Borough Council,29UM,18/12/2019,1173043,1190.00,GHYLLSIDE LTD,644979                   ,DEMOCRATIC & ELECTORAL SERVICES,Hire Of Premises,Ledger/Suspense Codes
Swale Borough Council,29UM,18/12/2019,1173022,280.00,HIGHER ELEVATION LTD,4078005                  ,HOUSING SERVICES,Staying Put small repairs (contractors),Housing
Swale Borough Council,29UM,18/12/2019,1173103,4833.40,HUBBARD & HOUGHTON CONSTRUCTION LTD,                         ,HOUSING SERVICES,Housing Renovation Grants,Not used in this Structure
Swale Borough Council,29UM,18/12/2019,1173074,1200.00,IRRV SERVICES LTD,223447                   ,REVENUE SERVICES,Grants & Subscriptions,Housing
Swale Borough Council,29UM,18/12/2019,1172902,1200.00,REDACTED PERSONAL INFORMATION,                         ,HOUSING SERVICES,NL (Nightly Lets) - Homelessness Landlord Payments,Housing
Swale Borough Council,29UM,18/12/2019,1172877,1750.00,KAREBEAR KENNELS LTD,                         ,ENVIRONMENTAL RESPONSE TEAM,Kennelling Of Dogs,Environmental and Regulatory Services
Swale Borough Council,29UM,18/12/2019,1172877,-500.00,KAREBEAR KENNELS LTD,                         ,ENVIRONMENTAL RESPONSE TEAM,Income collected by Dog Kennels,Environmental and Regulatory Services
Swale Borough Council,29UM,18/12/2019,1172910,725.54,KENT COUNTY COUNCIL (KCS),                         ,MULTISTOREY CAR PARK,Electricity,Highway and Transport Services
Swale Borough Council,29UM,18/12/2019,1173026,4244.24,KENT COUNTY COUNCIL (KCS),                         ,PROPERTY SERVICES,Electricity,Corporate & Democratic Core
Swale Borough Council,29UM,18/12/2019,1173035,296.10,KENT COUNTY COUNCIL (KCS),                         ,CAR PARKS,Electricity,Highway and Transport Services
Swale Borough Council,29UM,18/12/2019,1172994,4255.00,KIRAN REARDON PROPERTY SERVICES,                         ,HOUSING SERVICES,NL (Nightly Lets) - Homelessness Landlord Payments,Housing
Swale Borough Council,29UM,18/12/2019,1172926,210.84,KIRKMAN & JOURDAIN LTD,01766240                 ,HOUSING SERVICES,General Maintenance,Housing
Swale Borough Council,29UM,18/12/2019,1172926,339.25,KIRKMAN & JOURDAIN LTD,01766240                 ,HOUSING SERVICES,General Maintenance,Housing
Swale Borough Council,29UM,18/12/2019,1172926,27.00,KIRKMAN & JOURDAIN LTD,01766240                 ,PROPERTY SERVICES,Non-Planned Building Maintenance,Corporate & Democratic Core
Swale Borough Council,29UM,18/12/2019,1172926,1302.92,KIRKMAN & JOURDAIN LTD,01766240                 ,PROPERTY SERVICES,Non-Planned Building Maintenance,Corporate & Democratic Core
Swale Borough Council,29UM,18/12/2019,1172926,55.00,KIRKMAN & JOURDAIN LTD,01766240                 ,PROPERTY SERVICES,Non-Planned Building Maintenance,Corporate & Democratic Core
Swale Borough Council,29UM,18/12/2019,1172926,55.00,KIRKMAN & JOURDAIN LTD,01766240                 ,PROPERTY SERVICES,Non-Planned Building Maintenance,Corporate & Democratic Core
Swale Borough Council,29UM,18/12/2019,1172926,3818.46,KIRKMAN & JOURDAIN LTD,01766240                 ,PROPERTY SERVICES,Buildings Maintenance,Corporate & Democratic Core
Swale Borough Council,29UM,18/12/2019,1172926,565.71,KIRKMAN & JOURDAIN LTD,01766240                 ,PROPERTY SERVICES,Non-Planned Building Maintenance,Corporate & Democratic Core
Swale Borough Council,29UM,18/12/2019,1172926,739.49,KIRKMAN & JOURDAIN LTD,01766240                 ,PROPERTY SERVICES,Non-Planned Building Maintenance,Corporate & Democratic Core
Swale Borough Council,29UM,18/12/2019,1172926,314.16,KIRKMAN & JOURDAIN LTD,01766240                 ,PROPERTY SERVICES,Non-Planned Building Maintenance,Corporate & Democratic Core
Swale Borough Council,29UM,18/12/2019,1172926,115.30,KIRKMAN & JOURDAIN LTD,01766240                 ,PROPERTY SERVICES,Non-Planned Building Maintenance,Corporate & Democratic Core
Swale Borough Council,29UM,18/12/2019,1172926,517.00,KIRKMAN & JOURDAIN LTD,01766240                 ,CONTRACT & PROCUREMENT,Non-Planned Building Maintenance,Environmental and Regulatory Services
Swale Borough Council,29UM,18/12/2019,1172926,283.44,KIRKMAN & JOURDAIN LTD,01766240                 ,CONTRACT & PROCUREMENT,Non-Planned Building Maintenance,Environmental and Regulatory Services
Swale Borough Council,29UM,18/12/2019,1172926,117.06,KIRKMAN & JOURDAIN LTD,01766240                 ,CONTRACT & PROCUREMENT,Non-Planned Building Maintenance,Environmental and Regulatory Services
Swale Borough Council,29UM,18/12/2019,1172926,27.50,KIRKMAN & JOURDAIN LTD,01766240                 ,CONTRACT & PROCUREMENT,Non-Planned Building Maintenance,Environmental and Regulatory Services
Swale Borough Council,29UM,18/12/2019,1172926,58.92,KIRKMAN & JOURDAIN LTD,01766240                 ,CONTRACT & PROCUREMENT,Non-Planned Building Maintenance,Environmental and Regulatory Services
Swale Borough Council,29UM,18/12/2019,1172926,96.25,KIRKMAN & JOURDAIN LTD,01766240                 ,CONTRACT & PROCUREMENT,Non-Planned Building Maintenance,Environmental and Regulatory Services
Swale Borough Council,29UM,18/12/2019,1172926,590.30,KIRKMAN & JOURDAIN LTD,01766240                 ,CONTRACT & PROCUREMENT,Non-Planned Building Maintenance,Environmental and Regulatory Services
Swale Borough Council,29UM,18/12/2019,1172926,55.00,KIRKMAN & JOURDAIN LTD,01766240                 ,CONTRACT & PROCUREMENT,Non-Planned Building Maintenance,Environmental and Regulatory Services
Swale Borough Council,29UM,18/12/2019,1172926,451.94,KIRKMAN & JOURDAIN LTD,01766240                 ,CONTRACT & PROCUREMENT,Non-Planned Building Maintenance,Environmental and Regulatory Services
Swale Borough Council,29UM,18/12/2019,1172926,402.50,KIRKMAN & JOURDAIN LTD,01766240                 ,CONTRACT & PROCUREMENT,Non-Planned Building Maintenance,Environmental and Regulatory Services
Swale Borough Council,29UM,18/12/2019,1172926,381.72,KIRKMAN & JOURDAIN LTD,01766240                 ,CONTRACT & PROCUREMENT,Non-Planned Building Maintenance,Environmental and Regulatory Services
Swale Borough Council,29UM,18/12/2019,1172926,74.63,KIRKMAN & JOURDAIN LTD,01766240                 ,CONTRACT & PROCUREMENT,Non-Planned Building Maintenance,Environmental and Regulatory Services
Swale Borough Council,29UM,18/12/2019,1172926,412.75,KIRKMAN & JOURDAIN LTD,01766240                 ,CONTRACT & PROCUREMENT,Non-Planned Building Maintenance,Environmental and Regulatory Services
Swale Borough Council,29UM,18/12/2019,1172926,366.75,KIRKMAN & JOURDAIN LTD,01766240                 ,CONTRACT & PROCUREMENT,Non-Planned Building Maintenance,Environmental and Regulatory Services
Swale Borough Council,29UM,18/12/2019,1172926,139.05,KIRKMAN & JOURDAIN LTD,01766240                 ,CONTRACT & PROCUREMENT,Non-Planned Building Maintenance,Environmental and Regulatory Services
Swale Borough Council,29UM,18/12/2019,1172926,5175.00,KIRKMAN & JOURDAIN LTD,01766240                 ,LEISURE & OPEN SPACES,Non-Planned Building Maintenance,Cultural and Related Services
Swale Borough Council,29UM,18/12/2019,1172926,55.00,KIRKMAN & JOURDAIN LTD,01766240                 ,LEISURE & OPEN SPACES,Non-Planned Building Maintenance,Cultural and Related Services
Swale Borough Council,29UM,18/12/2019,1172926,153.55,KIRKMAN & JOURDAIN LTD,01766240                 ,LEISURE & OPEN SPACES,Non-Planned Building Maintenance,Cultural and Related Services
Swale Borough Council,29UM,18/12/2019,1172927,74.69,KIRKMAN & JOURDAIN LTD,01766240                 ,PROPERTY SERVICES,Non-Planned Building Maintenance,Corporate & Democratic Core
Swale Borough Council,29UM,18/12/2019,1172927,163.26,KIRKMAN & JOURDAIN LTD,01766240                 ,PROPERTY SERVICES,Non-Planned Building Maintenance,Corporate & Democratic Core
Swale Borough Council,29UM,18/12/2019,1172927,108.00,KIRKMAN & JOURDAIN LTD,01766240                 ,PROPERTY SERVICES,Non-Planned Building Maintenance,Corporate & Democratic Core
Swale Borough Council,29UM,18/12/2019,1172927,835.35,KIRKMAN & JOURDAIN LTD,01766240                 ,CONTRACT & PROCUREMENT,Non-Planned Building Maintenance,Environmental and Regulatory Services
Swale Borough Council,29UM,18/12/2019,1172526,855.36,KONE PLC,1372978                  ,MULTISTOREY CAR PARK,Building Maintenance - Reactive,Highway and Transport Services
Swale Borough Council,29UM,18/12/2019,1172996,2842.30,LA SUPPORT LIMITED,11850540                 ,ENVIRONMENTAL RESPONSE TEAM,Fees and Services,Planning and Development Services
Swale Borough Council,29UM,18/12/2019,1173065,300.00,LEMAR LIMITED,04350292                 ,SERVICE DELIVERY,Private Contractors - CIS,Highway and Transport Services
Swale Borough Council,29UM,18/12/2019,1173065,100.00,LEMAR LIMITED,04350292                 ,SERVICE DELIVERY,Private Contractors - CIS,Highway and Transport Services
Swale Borough Council,29UM,18/12/2019,1173013,275.23,LEX AUTOLEASE LTD,1090741                  ,HOUSING SERVICES,Hire & Leases,Housing
Swale Borough Council,29UM,18/12/2019,1172723,2700.00,LINK PROPERTY GROUP,                         ,HOUSING SERVICES,NL (Nightly Lets) - Homelessness Landlord Payments,Housing
Swale Borough Council,29UM,18/12/2019,1173010,1297.43,LLOYDS BANK - (DT),                         ,FINANCIAL SERVICES,Bank Charges,Corporate & Democratic Core
Swale Borough Council,29UM,18/12/2019,1173030,315.00,LUSHLAND,4289261                  ,LEISURE & OPEN SPACES,Consultancy/Specialist Advice,Cultural and Related Services
Swale Borough Council,29UM,18/12/2019,1173024,14363.35,MAIDSTONE BOROUGH COUNCIL,                         ,CONTRACT & PROCUREMENT,Equipment Purchase,Environmental and Regulatory Services
Swale Borough Council,29UM,18/12/2019,1173152,963261.00,MAIDSTONE BOROUGH COUNCIL - DT,                         ,FINANCIAL SERVICES,Tariff to Gvt,Taxation and Non-Specific Grant Income
Swale Borough Council,29UM,18/12/2019,1172975,268.30,MANKIND INITIATIVE,3869893                  ,COMMUNITY SAFETY,Fees and Services,Planning and Development Services
Swale Borough Council,29UM,18/12/2019,1172986,10337.74,MATRIX SCM LTD,2227962                  ,HUMAN RESOURCES,Agency/Contract Staff,Internal Trading Cost Centres
Swale Borough Council,29UM,18/12/2019,1172960,500.00,MEDWAY PUBLIC SERVICES LTD,10041989                 ,COMMUNITY SAFETY,CCTV Monitoring Service,Environmental and Regulatory Services
Swale Borough Council,29UM,18/12/2019,1172864,6000.25,MPS MARKETING SERVICES LIMITED,6360656                  ,DEMOCRATIC & ELECTORAL SERVICES,Fees and Services,Ledger/Suspense Codes
Swale Borough Council,29UM,18/12/2019,1172812,775.00,REDACTED PERSONAL INFORMATION,                         ,HOUSING SERVICES,RDS - Landlord claim on Bond Scheme,Housing
Swale Borough Council,29UM,18/12/2019,1172816,1062.50,REDACTED PERSONAL INFORMATION,                         ,HOUSING SERVICES,RDS - Landlord claim on Bond Scheme,Housing
Swale Borough Council,29UM,18/12/2019,1172544,700.00,REDACTED PERSONAL INFORMATION,                         ,HOUSING SERVICES,B & B - Homelessness Landlord Payments,Housing
Swale Borough Council,29UM,18/12/2019,1172972,1000.00,NEW LEAF SUPPORT LTD,                         ,TOURISM & SPORTS DEVELOPMENT,Grants & Subscriptions,Cultural and Related Services
Swale Borough Council,29UM,18/12/2019,1172978,892.00,OBSIDIAN SECURITY LTD,                         ,PROPERTY SERVICES,Buildings Maintenance,Corporate & Democratic Core
Swale Borough Council,29UM,18/12/2019,1172963,9150.00,OPL COMMERCIAL (OUTDOOR PLACES) LTD,10587541                 ,LEISURE & OPEN SPACES,Capital Constuction - CIS Works,Not used in this Structure
Swale Borough Council,29UM,18/12/2019,1171993,1395.00,PARAMOUNT INDEPENDENT PROPERTY SERVICES,                         ,HOUSING SERVICES,NL (Nightly Lets) - Homelessness Landlord Payments,Housing
Swale Borough Council,29UM,18/12/2019,1171993,42686.00,PARAMOUNT INDEPENDENT PROPERTY SERVICES,                         ,HOUSING SERVICES,NL (Nightly Lets) - Homelessness Landlord Payments,Housing
Swale Borough Council,29UM,18/12/2019,1172662,1586.67,PARK AVENUE RECRUITMENT LTD,10370450                 ,HOUSING SERVICES,Agency/Contract Staff,Housing
Swale Borough Council,29UM,18/12/2019,1172662,114.00,PARK AVENUE RECRUITMENT LTD,10370450                 ,HOUSING SERVICES,Agency/Contract Staff,Housing
Swale Borough Council,29UM,18/12/2019,1172663,870.00,PARK AVENUE RECRUITMENT LTD,10370450                 ,HOUSING SERVICES,Agency/Contract Staff,Housing
Swale Borough Council,29UM,18/12/2019,1172873,1022.00,PARK AVENUE RECRUITMENT LTD,10370450                 ,HOUSING SERVICES,Agency/Contract Staff,Housing
Swale Borough Council,29UM,18/12/2019,1172873,72.00,PARK AVENUE RECRUITMENT LTD,10370450                 ,HOUSING SERVICES,Agency/Contract Staff,Housing
Swale Borough Council,29UM,18/12/2019,1172874,1073.00,PARK AVENUE RECRUITMENT LTD,10370450                 ,HOUSING SERVICES,Agency/Contract Staff,Housing
Swale Borough Council,29UM,18/12/2019,1173028,1073.00,PARK AVENUE RECRUITMENT LTD,10370450                 ,HOUSING SERVICES,Agency/Contract Staff,Housing
Swale Borough Council,29UM,18/12/2019,1172974,833.33,PARKRUN LIMITED,07289574                 ,TOURISM & SPORTS DEVELOPMENT,Fees and Services,Cultural and Related Services
Swale Borough Council,29UM,18/12/2019,1172935,420.00,POPE & CO SOLICITORS,                         ,FINANCIAL SERVICES,Fees and Services,Internal Trading Cost Centres
Swale Borough Council,29UM,18/12/2019,1173091,1982.68,PS BREASTFEEDING CIC,                         ,ENVIRONMENTAL RESPONSE TEAM,Grants & Subscriptions,Planning and Development Services
Swale Borough Council,29UM,18/12/2019,1172924,855.00,RAINBOW WATER SERVICES LTD,2735065                  ,PROPERTY SERVICES,Service Contracts,Corporate & Democratic Core
Swale Borough Council,29UM,18/12/2019,1172929,500.00,RICHMOND ACADEMY,                         ,DEMOCRATIC & ELECTORAL SERVICES,Hire Of Premises,Ledger/Suspense Codes
Swale Borough Council,29UM,18/12/2019,1172896,1616.94,ROYAL MAIL GROUP LTD,4138203                  ,DEMOCRATIC & ELECTORAL SERVICES,Postage,Ledger/Suspense Codes
Swale Borough Council,29UM,18/12/2019,1172852,743.80,RSP RAIL TRAVEL ACCOUNT - (DT),                         ,FINANCIAL SERVICES,Travel Warrants (Staff Travel),Internal Trading Cost Centres
Swale Borough Council,29UM,18/12/2019,1173105,2350.00,REDACTED PERSONAL INFORMATION,                         ,HOUSING SERVICES,Housing Renovation Grants,Not used in this Structure
Swale Borough Council,29UM,18/12/2019,1173020,2723.26,SCOTTISH WATER BUSINESS STREAM LTD,SC294924                 ,PROPERTY SERVICES,Water - Metered,Corporate & Democratic Core
Swale Borough Council,29UM,18/12/2019,1173032,25606.69,SERCO LEISURE OPERATING LIMITED,04687478                 ,LEISURE & OPEN SPACES,Construction,Not used in this Structure
Swale Borough Council,29UM,18/12/2019,1172903,509.78,SOUTHERN COMMUNICATIONS LTD,1328040                  ,MKS ICT,Telephone,Corporate & Democratic Core
Swale Borough Council,29UM,18/12/2019,1173160,687821.02,SPIRIT OF SITTINGBOURNE LLP,OC377168                 ,FINANCIAL SERVICES,STC - Capitalised Fees And Charges,Not used in this Structure
Swale Borough Council,29UM,18/12/2019,1173015,3331.00,SWALE COMMUNITY LEISURE LIMITED,31132R                   ,DEMOCRATIC & ELECTORAL SERVICES,Hire Of Premises,Ledger/Suspense Codes
Swale Borough Council,29UM,18/12/2019,1173015,200.00,SWALE COMMUNITY LEISURE LIMITED,31132R                   ,DEMOCRATIC & ELECTORAL SERVICES,Hire Of Premises,Ledger/Suspense Codes
Swale Borough Council,29UM,18/12/2019,1173015,1892.00,SWALE COMMUNITY LEISURE LIMITED,31132R                   ,DEMOCRATIC & ELECTORAL SERVICES,Hire Of Premises,Ledger/Suspense Codes
Swale Borough Council,29UM,18/12/2019,1172987,29690.50,THE GREAT OUTDOOR GYM COMPANY LTD,6041524                  ,LEISURE & OPEN SPACES,Capital Constuction - CIS Works,Not used in this Structure
Swale Borough Council,29UM,18/12/2019,1172713,330.95,THE RIVERSIDE HOUSING GROUP LTD,                         ,HOUSING SERVICES,Homelessness  Prevention Services,Housing
Swale Borough Council,29UM,18/12/2019,1172818,1500.00,TIKSPAC UK LTD,09238130                 ,CONTRACT & PROCUREMENT,Waste and Recycling Promotion / Comm's Projects,Environmental and Regulatory Services
Swale Borough Council,29UM,18/12/2019,1172716,870.00,TRAFALGAR TAVERN LTD,07999329                 ,HOUSING SERVICES,B & B - Homelessness Landlord Payments,Housing
Swale Borough Council,29UM,18/12/2019,1172900,420.00,TRAFALGAR TAVERN LTD,07999329                 ,HOUSING SERVICES,B & B - Homelessness Landlord Payments,Housing
Swale Borough Council,29UM,18/12/2019,1172901,1068.00,TRAFALGAR TAVERN LTD,07999329                 ,HOUSING SERVICES,B & B - Homelessness Landlord Payments,Housing
Swale Borough Council,29UM,18/12/2019,1173052,1011.00,TRAFALGAR TAVERN LTD,07999329                 ,HOUSING SERVICES,B & B - Homelessness Landlord Payments,Housing
Swale Borough Council,29UM,18/12/2019,1172858,438.05,VR SANI-CO LTD,3588359                  ,CONTRACT & PROCUREMENT,Hygiene Service Contracts,Environmental and Regulatory Services
Swale Borough Council,29UM,18/12/2019,1172859,23.84,VR SANI-CO LTD,3588359                  ,LEISURE & OPEN SPACES,Service Contracts,Cultural and Related Services
Swale Borough Council,29UM,18/12/2019,1172859,12.50,VR SANI-CO LTD,3588359                  ,LEISURE & OPEN SPACES,Service Contracts,Cultural and Related Services
Swale Borough Council,29UM,18/12/2019,1172859,28.17,VR SANI-CO LTD,3588359                  ,LEISURE & OPEN SPACES,Service Contracts,Cultural and Related Services
Swale Borough Council,29UM,18/12/2019,1172859,9.75,VR SANI-CO LTD,3588359                  ,LEISURE & OPEN SPACES,Service Contracts,Cultural and Related Services
Swale Borough Council,29UM,18/12/2019,1172859,16.32,VR SANI-CO LTD,3588359                  ,LEISURE & OPEN SPACES,Service Contracts,Cultural and Related Services
Swale Borough Council,29UM,18/12/2019,1172859,35.76,VR SANI-CO LTD,3588359                  ,PROPERTY SERVICES,Service Contracts,Cultural and Related Services
Swale Borough Council,29UM,18/12/2019,1172859,5.96,VR SANI-CO LTD,3588359                  ,COMMUNITY SAFETY,Service Contracts,Cultural and Related Services
Swale Borough Council,29UM,18/12/2019,1172859,214.56,VR SANI-CO LTD,3588359                  ,PROPERTY SERVICES,Service Contracts,Corporate & Democratic Core
Swale Borough Council,29UM,18/12/2019,1172859,50.00,VR SANI-CO LTD,3588359                  ,PROPERTY SERVICES,Service Contracts,Corporate & Democratic Core
Swale Borough Council,29UM,18/12/2019,1172859,14.08,VR SANI-CO LTD,3588359                  ,PROPERTY SERVICES,Service Contracts,Corporate & Democratic Core
Swale Borough Council,29UM,18/12/2019,1172859,26.00,VR SANI-CO LTD,3588359                  ,PROPERTY SERVICES,Service Contracts,Corporate & Democratic Core
Swale Borough Council,29UM,18/12/2019,1172988,2100.00,WEALD WOODSCAPES LTD,8028446                  ,LEISURE & OPEN SPACES,Maintenance - Grounds,Cultural and Related Services
Swale Borough Council,29UM,18/12/2019,1172893,464.66,WHISTL UK LIMITED,04417047                 ,REVENUE SERVICES,Postage,Central Services to the Public
Swale Borough Council,29UM,18/12/2019,1172893,232.32,WHISTL UK LIMITED,04417047                 ,REVENUE SERVICES,Postage,Housing
Swale Borough Council,29UM,18/12/2019,1172893,3.16,WHISTL UK LIMITED,04417047                 ,LEISURE & OPEN SPACES,Postage,Internal Trading Cost Centres
Swale Borough Council,29UM,18/12/2019,1172893,14.68,WHISTL UK LIMITED,04417047                 ,CAR PARKS,Postage,Internal Trading Cost Centres
Swale Borough Council,29UM,18/12/2019,1172893,103.92,WHISTL UK LIMITED,04417047                 ,PROPERTY SERVICES,Postage,Holding Codes
Swale Borough Council,29UM,18/12/2019,1172893,72.15,WHISTL UK LIMITED,04417047                 ,DEMOCRATIC & ELECTORAL SERVICES,Postage,Central Services to the Public
Swale Borough Council,29UM,18/12/2019,1173102,829.31,WILLOW TREE HOME SOLUTIONS LTD,                         ,HOUSING SERVICES,Housing Renovation Grants,Not used in this Structure
Swale Borough Council,29UM,18/12/2019,1173141,2459.15,WORLDPAY (DT),07316500                 ,REVENUE SERVICES,Commission Paid,Central Services to the Public
Swale Borough Council,29UM,18/12/2019,1173141,57.18,WORLDPAY (DT),07316500                 ,REVENUE SERVICES,Commission Paid,Central Services to the Public
Swale Borough Council,29UM,18/12/2019,1173141,28.59,WORLDPAY (DT),07316500                 ,REVENUE SERVICES,Commission Paid,Housing
Swale Borough Council,29UM,18/12/2019,1173141,28.59,WORLDPAY (DT),07316500                 ,EXCHEQUER,Commission Paid,Internal Trading Cost Centres
Swale Borough Council,29UM,18/12/2019,1173141,285.90,WORLDPAY (DT),07316500                 ,EXCHEQUER,Commission Paid,Internal Trading Cost Centres
Swale Borough Council,29UM,18/12/2019,1173141,37.53,WORLDPAY (DT),07316500                 ,EXCHEQUER,Commission Paid,Internal Trading Cost Centres
Swale Borough Council,29UM,18/12/2019,1173142,2181.08,WORLDPAY (DT),07316500                 ,REVENUE SERVICES,Commission Paid,Central Services to the Public
Swale Borough Council,29UM,18/12/2019,1173142,39.18,WORLDPAY (DT),07316500                 ,REVENUE SERVICES,Commission Paid,Central Services to the Public
Swale Borough Council,29UM,18/12/2019,1173142,26.12,WORLDPAY (DT),07316500                 ,REVENUE SERVICES,Commission Paid,Housing
Swale Borough Council,29UM,18/12/2019,1173142,365.68,WORLDPAY (DT),07316500                 ,EXCHEQUER,Commission Paid,Internal Trading Cost Centres
Swale Borough Council,29UM,18/12/2019,1173142,2.75,WORLDPAY (DT),07316500                 ,EXCHEQUER,Commission Paid,Internal Trading Cost Centres
Swale Borough Council,29UM,18/12/2019,1172950,1500.00,WYNNE-WILLIAMS ASSOCIATES LTD,5148770                  ,LEISURE & OPEN SPACES,Capitalised Fees And Charges,Not used in this Structure
Swale Borough Council,29UM,18/12/2019,1172951,2650.75,WYNNE-WILLIAMS ASSOCIATES LTD,5148770                  ,LEISURE & OPEN SPACES,Capitalised Fees And Charges,Not used in this Structure
Swale Borough Council,29UM,18/12/2019,1172921,495.00,WYNSDALE WASTE MANAGEMENT LTD,07837119                 ,HOUSING SERVICES,Staying Put small repairs (contractors),Housing
Swale Borough Council,29UM,18/12/2019,1172922,895.00,WYNSDALE WASTE MANAGEMENT LTD,07837119                 ,HOUSING SERVICES,Staying Put small repairs (contractors),Housing
Swale Borough Council,29UM,18/12/2019,1172925,925.00,WYNSDALE WASTE MANAGEMENT LTD,07837119                 ,HOUSING SERVICES,Staying Put small repairs (contractors),Housing
